bitfinex-derivatives/quotes_ETHF0:USTF0_20251028
["timestamp","ask_amount","ask_price","bid_price","bid_amount"]
[1761656874646,0.4866,4130.2,4130.1,0.94460375]
[1761656875044,40.8,4130.4,4130.3,0.8697]
[1761656875250,40.8,4130.4,4130.3,0.9425]
[1761656875749,0.2213,4130.4,4130.3,0.9425]
[1761656876444,40.8,4130.6,4130.5,1.0056]
[1761656876643,40.8,4130.6,4130.5,1.0784]
[1761656877448,40.8,4130.6,4130.5,1.1512]
[1761656877943,40.8,4130.6,4130.5,1.0784]
[1761656879844,0.0029435,4130.7,4130.6,0.8697]
[1761656880049,0.0029435,4130.7,4130.6,1.66049443]
[1761656880956,0.0029435,4130.7,4130.6,2.09629443]
[1761656881246,0.0029435,4130.7,4130.6,1.4511]
[1761656881451,0.2213,4131.8,4131.7,0.8697]
[1761656881845,41.0213,4131.8,4131.7,0.8697]
[1761656882550,40.80186627,4131.8,4131.7,0.8697]
[1761656883246,40.80186627,4131.8,4131.7,0.3927]
[1761656883450,41.10026627,4131.8,4131.7,0.6231]
[1761656883651,40.80186627,4131.8,4131.7,0.8697]
[1761656884154,0.00186627,4131.8,4131.7,0.9425]
[1761656884342,0.00186627,4131.8,4131.7,1.37819]
[1761656884958,0.00186627,4131.8,4131.7,2.02308134]
[1761656885142,0.00186627,4131.8,4131.7,1.37819]
[1761656885757,0.00186627,4131.8,4131.7,1.94840961]
[1761656886451,0.00186627,4131.8,4131.7,2.02120961]
[1761656887254,0.00186627,4131.8,4131.7,1.37819]
[1761656888554,0.2557,4133.2,4132.2,1.19573]
[1761656888855,0.2557,4133.2,4132.2,4.47633]
[1761656888856,0.2512395,4132.3,4132.2,4.47633]
[1761656889058,0.4437,4133.2,4133.1,0.5447]
[1761656889261,0.6994,4133.2,4133.1,0.3251]
[1761656889457,0.284,4133.0,4132.5,0.4565]
[1761656889663,0.6994,4132.6,4132.5,0.32789496]
[1761656889862,0.4437,4132.6,4132.5,0.89429496]
[1761656890362,0.2144,4132.6,4132.5,0.89429496]
[1761656892355,0.2557,4133.0,4132.5,0.67469496]
[1761656892655,0.6994,4133.0,4132.9,0.3251]
[1761656892854,0.4437,4132.6,4132.5,0.35379496]
[1761656893057,0.4437,4132.6,4132.5,0.56919496]
[1761656893251,0.2144,4132.6,4132.5,0.56919496]
[1761656893557,0.2144,4132.6,4132.5,0.89429496]
[1761656894158,41.05796419,4133.2,4133.1,0.2196]
[1761656894357,41.05796419,4133.2,4132.7,3.4274]
[1761656894358,0.4437,4132.8,4132.7,3.4274]
[1761656894563,0.6994,4132.8,4132.7,3.2078]
[1761656895061,0.6994,4132.8,4132.7,3.5329]
[1761656895258,0.7722,4132.8,4132.5,0.00279496]
[1761656895561,0.6994,4132.6,4132.5,0.32789496]
[1761656896256,0.6994,4132.6,4132.5,0.00279496]
[1761656896460,41.4994,4132.6,4132.5,0.00279496]
[1761656896957,41.5722,4132.6,4132.5,0.00279496]
[1761656898153,0.6994,4132.3,4132.2,3.2078]
[1761656898557,0.7722,4132.3,4132.2,3.2078]
[1761656899359,0.7722,4132.3,4132.2,3.20962617]
[1761656899551,0.6994,4132.3,4132.2,3.20962617]
[1761656899752,0.7722,4132.3,4132.2,3.20962617]
[1761656900760,0.7722,4132.3,4132.2,0.00182617]
[1761656901163,0.6994,4132.3,4132.2,0.32692617]
[1761656901359,0.4437,4132.3,4132.2,0.76192617]
[1761656901569,0.6994,4132.3,4132.2,0.76472113]
[1761656901761,0.4437,4132.3,4132.2,3.97252113]
[1761656902159,0.2144,4132.3,4132.2,3.97252113]
[1761656902361,40.8,4132.6,4132.5,0.8915]
[1761656902557,40.8,4132.6,4132.5,0.89429496]
[1761656904961,40.8,4132.6,4132.5,0.96709496]
[1761656905262,40.8,4132.6,4132.5,0.89429496]
[1761656907465,41.0557,4132.6,4132.5,0.89429496]
[1761656907766,41.0557,4132.6,4132.5,0.67889496]
[1761656908059,0.6994,4132.3,4132.2,3.75432617]
[1761656908255,40.8,4132.6,4132.2,3.75432617]
[1761656908256,40.8,4132.6,4132.5,0.89429496]
[1761656909364,41.0557,4132.6,4132.5,0.89429496]
[1761656910765,40.8,4132.6,4132.5,0.89429496]
[1761656912359,41.0557,4132.6,4132.5,0.89429496]
[1761656913055,40.8,4132.6,4132.5,0.89429496]
[1761656914769,41.0557,4132.6,4132.5,0.67889496]
[1761656914966,0.7045,4132.5,4132.4,0.3188]
[1761656915360,0.7045,4132.5,4132.4,0.32159496]
[1761656915672,0.7045,4132.5,4132.4,0.54909496]
[1761656915973,0.7045,4132.5,4132.4,3.5266]
[1761656916167,0.7045,4132.5,4132.4,3.52939496]
[1761656917468,0.4488,4132.5,4132.4,3.97309496]
[1761656922071,40.8,4132.6,4132.5,0.4437]
[1761656922374,40.8,4132.6,4132.5,0.90229496]
[1761656922574,40.8,4132.6,4132.5,1.54330271]
[1761656922963,0.23336419,4133.2,4133.1,0.7625]
[1761656923165,0.23336419,4133.2,4133.1,3.97309496]
[1761656923666,1.12563101,4133.6,4133.1,3.97309496]
[1761656923667,0.86993101,4133.6,4133.1,4.0431]
[1761656923870,1.73075764,4134.3,4134.2,0.7625]
[1761656924173,0.2311,4135.0,4134.9,0.5463]
[1761656924470,0.2311,4135.0,4134.9,3.9703]
[1761656924676,0.5591,4135.4,4135.3,0.535]
[1761656924874,0.79259505,4135.4,4135.3,0.44635076]
[1761656925176,0.79259505,4135.4,4135.3,0.54895076]
[1761656925472,3.31577313,4136.0,4135.3,0.54895076]
[1761656925473,0.81347313,4136.0,4135.9,0.2275]
[1761656925672,0.7902,4135.7,4135.6,3.4353]
[1761656925973,0.7902,4135.7,4135.6,3.7541]
[1761656926269,0.02327313,4136.0,4135.9,0.7625]
[1761656926577,0.02542891,4136.0,4135.9,0.7625]
[1761656928173,0.3414,4137.4,4136.0,0.137]
[1761656928371,0.2311,4136.8,4136.7,0.7625]
[1761656928667,0.7902,4136.8,4136.7,0.7625]
[1761656929069,0.7902,4136.8,4136.7,0.2275]
[1761656929271,0.79278853,4136.8,4136.7,0.2275]
[1761656929469,0.79278853,4136.8,4136.7,0.7625]
[1761656929674,0.00258853,4136.8,4136.7,0.7625]
[1761656929876,0.79278853,4136.8,4136.7,0.7625]
[1761656930078,0.7902,4136.4,4136.3,0.7625]
[1761656930487,0.4488,4136.2,4136.1,3.424]
[1761656930776,0.4488,4136.2,4136.1,3.6515]
[1761656931074,0.7902,4136.2,4136.1,3.9703]
[1761656931276,0.7902,4136.2,4136.1,3.2078]
[1761656931472,0.3414,4136.4,4135.6,3.4353]
[1761656931678,0.7902,4135.7,4135.6,3.9703]
[1761656932375,0.2311,4135.7,4135.6,3.9703]
[1761656932570,0.863,4135.7,4135.6,3.9703]
[1761656932770,0.7902,4135.7,4135.6,3.2078]
[1761656932972,0.7902,4135.4,4135.3,0.00265076]
[1761656933273,0.7902,4135.4,4135.3,0.54895076]
[1761656933574,41.5902,4135.4,4135.3,0.00265076]
[1761656934476,41.5902,4135.4,4135.3,0.76515076]
[1761656934780,41.5902,4135.4,4135.3,0.00265076]
[1761656935875,41.5902,4135.4,4135.3,0.23015076]
[1761656936180,41.5902,4135.4,4135.3,0.00265076]
[1761656936575,41.663,4135.4,4135.3,0.00265076]
[1761656937177,41.5902,4135.4,4135.3,0.00265076]
[1761656938072,41.5902,4135.4,4135.3,0.76515076]
[1761656938486,41.2488,4135.4,4135.3,0.76515076]
[1761656938683,0.7902,4136.0,4135.9,0.5463]
[1761656938880,0.5725,4135.6,4135.5,0.8995]
[1761656939272,41.5902,4135.6,4135.5,0.7625]
[1761656941282,41.5902,4135.6,4135.5,0.8995]
[1761656941481,41.2488,4135.6,4135.5,0.8995]
[1761656941678,41.0311,4135.6,4135.5,0.8995]
[1761656941882,41.3725,4135.6,4135.5,0.7625]
[1761656942176,41.0311,4135.6,4135.5,4.1073]
[1761656942376,40.8,4135.6,4135.5,4.1801]
[1761656942579,0.7902,4136.3,4136.2,0.7625]
[1761656943080,41.5902,4136.3,4136.2,0.7625]
[1761656943284,41.5902,4136.3,4136.2,0.4437]
[1761656943581,0.7902,4136.0,4135.9,0.7625]
[1761656943786,0.4488,4135.7,4135.5,3.3448]
[1761656944087,0.7902,4135.6,4135.5,3.4353]
[1761656944675,0.863,4135.6,4135.5,3.2078]
[1761656944878,0.7674,4135.4,4135.3,0.00265076]
[1761656945286,0.8402,4135.4,4135.3,0.00265076]
[1761656945780,41.6402,4135.4,4135.3,0.00265076]
[1761656945981,41.6402,4135.4,4134.5,3.2078]
[1761656945982,0.7674,4134.6,4134.5,3.7719]
[1761656946186,0.7674,4134.6,4134.5,3.9876]
[1761656946381,0.7674,4135.0,4134.9,0.7798]
[1761656946983,0.7674,4135.0,4134.9,0.78197614]
[1761656947484,0.55298853,4136.8,4136.7,0.2116]
[1761656947686,0.21878853,4136.8,4136.7,0.8274]
[1761656947989,0.21878853,4136.8,4136.7,0.7546]
[1761656949088,0.55298853,4136.8,4136.7,0.7546]
[1761656949288,0.76828853,4136.8,4136.7,0.7546]
[1761656949590,0.00258853,4136.8,4136.7,0.7546]
[1761656949792,0.7657,4136.1,4135.8,0.96202713]
[1761656950092,0.2162,4135.9,4135.8,0.7546]
[1761656950295,0.7657,4136.3,4136.2,0.5366]
[1761656950595,0.7657,4136.1,4136.0,3.2078]
[1761656951289,0.7657,4136.1,4135.7,0.7546]
[1761656951290,0.5504,4135.8,4135.7,0.7546]
[1761656951993,40.8,4136.1,4136.0,0.7546]
[1761656952184,40.8,4136.1,4136.0,3.9624]
[1761656952585,3.9735,4136.6,4136.5,0.5366]
[1761656952792,0.2162,4136.2,4136.1,0.7546]
[1761656952993,41.0162,4136.2,4136.1,0.7546]
[1761656953294,41.3504,4136.2,4136.1,0.4296]
[1761656953495,0.7657,4136.1,4136.0,3.2078]
[1761656953693,0.7657,4136.1,4136.0,3.7444]
[1761656953893,0.2162,4135.9,4135.8,0.84862713]
[1761656954197,0.7657,4135.9,4135.8,0.7546]
[1761656954590,0.4315,4135.9,4135.8,0.7546]
[1761656958197,0.2162,4135.9,4135.8,0.7546]
[1761656958399,41.1342,4136.2,4136.1,0.7546]
[1761656958594,40.8,4136.2,4136.1,0.7546]
[1761656958800,3.2078,4137.1,4136.7,0.7546]
[1761656959195,44.0078,4137.1,4136.7,0.7546]
[1761656959401,40.8,4137.1,4136.7,0.7546]
[1761656959604,40.8,4137.1,4136.7,1.26257]
[1761656959798,3.7582,4137.6,4137.5,0.4296]
[1761656960103,0.5504,4137.6,4137.5,0.7546]
[1761656960302,42.4653121,4137.6,4137.5,0.7546]
[1761656960703,0.8996121,4137.6,4137.5,0.9634]
[1761656960902,0.90207942,4137.6,4137.5,1.52762713]
[1761656961205,0.0794501,4137.6,4137.5,0.9634]
[1761656961509,0.0794501,4137.6,4137.5,1.60042713]
[1761656962200,0.0794501,4137.6,4137.5,0.8906]
[1761656962399,0.19446867,4139.6,4137.5,0.8906]
[1761656962400,3.2078,4139.4,4137.5,0.136]
[1761656962703,0.7657,4139.5,4139.4,0.2116]
[1761656962902,0.2162,4139.5,4139.4,3.9624]
[1761656963202,0.4315,4138.7,4138.2,3.2078]
[1761656963503,0.00181497,4138.7,4138.6,0.7546]
[1761656964804,0.00181497,4138.7,4138.6,0.8274]
[1761656965303,0.4315,4140.1,4139.5,0.325]
[1761656965607,0.4315,4140.1,4139.8,3.9624]
[1761656965608,0.5504,4139.9,4139.8,3.9624]
[1761656965811,40.8,4140.0,4139.9,0.4296]
[1761656966012,40.8,4140.0,4139.9,0.7546]
[1761656966211,0.2162,4141.0,4140.9,0.7546]
[1761656966405,3.64149202,4140.9,4140.3,3.5328]
[1761656966609,0.7657,4140.5,4140.4,0.2116]
[1761656966909,0.8977,4140.0,4139.9,0.0728]
[1761656967097,4.10769202,4140.0,4139.9,0.0728]
[1761656967304,4.10769202,4140.0,4139.9,0.8274]
[1761656967305,0.00178024,4140.0,4139.9,0.8274]
[1761656967510,40.8,4140.8,4140.7,0.7546]
[1761656967698,40.8,4140.8,4140.7,3.9624]
[1761656968404,3.64449961,4140.8,4140.2,3.2078]
[1761656968610,0.3342,4140.6,4140.5,0.2116]
[1761656968911,0.5504,4140.3,4140.2,3.7444]
[1761656969105,3.97569202,4140.3,4140.2,3.2078]
[1761656970605,0.3342,4140.7,4140.3,0.325]
[1761656970805,3.76039202,4140.7,4140.6,0.5366]
[1761656971002,3.97569202,4140.3,4140.2,3.2078]
[1761656971407,4.04849202,4140.3,4140.2,3.2078]
[1761656971808,3.97569202,4140.3,4140.2,3.2078]
[1761656972004,0.7657,4140.3,4140.2,3.2078]
[1761656972208,0.7657,4140.3,4139.9,0.0728]
[1761656972209,0.8977,4140.0,4139.9,0.0728]
[1761656972508,4.10769202,4140.0,4139.9,0.0728]
[1761656972913,3.97569202,4140.0,4139.9,0.6094]
[1761656973105,3.97569202,4140.0,4139.9,0.0728]
[1761656973306,3.97569202,4140.0,4139.9,0.2844]
[1761656973606,3.97569202,4140.0,4139.9,0.0728]
[1761656973810,44.90769202,4140.0,4139.9,0.0728]
[1761656974213,44.98049202,4140.0,4139.9,0.0728]
[1761656976909,0.4995,4138.8,4138.7,0.3172]
[1761656977110,0.0728,4138.8,4138.7,0.8145]
[1761656977514,0.6007,4139.3,4139.2,0.5943]
[1761656977716,0.2821,4138.9,4138.8,0.5943]
[1761656977909,0.8181,4138.9,4138.8,0.5943]
[1761656978113,0.6007,4138.5,4138.4,3.4849]
[1761656978415,0.2821,4138.5,4138.4,3.7051]
[1761656978607,41.1186,4138.9,4138.8,0.4973]
[1761656978814,3.4899,4139.4,4139.3,0.4973]
[1761656979114,3.2078,4139.4,4139.3,0.4973]
[1761656979315,44.0078,4139.4,4139.3,0.4973]
[1761656980011,44.0078,4139.4,4139.3,0.8145]
[1761656980707,0.2821,4139.0,4138.9,0.8145]
[1761656981020,0.8181,4139.0,4138.9,0.5943]
[1761656981315,44.1735,4139.4,4139.0,0.3172]
[1761656981316,0.3186,4139.3,4139.0,0.3172]
[1761656981510,0.6007,4139.3,4139.2,0.8145]
[1761656981815,0.2821,4138.9,4138.8,0.2771]
[1761656982015,0.6007,4138.9,4138.8,0.5943]
[1761656982214,0.6007,4138.9,4138.8,0.8145]
[1761656982415,44.3264,4139.4,4139.3,0.5943]
[1761656982715,44.3264,4139.4,4139.3,0.8145]
[1761656982916,44.3264,4139.4,4139.3,0.4973]
[1761656983123,44.3264,4139.4,4139.3,0.5943]
[1761656983412,0.6007,4138.9,4138.8,0.8145]
[1761656983806,0.8181,4138.9,4138.8,0.8145]
[1761656985309,44.3264,4139.4,4139.3,0.8145]
[1761656985515,0.8181,4138.9,4138.8,0.2771]
[1761656985714,0.8181,4138.9,4138.8,0.5943]
[1761656986521,0.8181,4138.9,4138.8,0.8145]
[1761656987419,44.1735,4139.4,4138.4,3.64279]
[1761656987420,0.8181,4139.3,4139.2,0.2771]
[1761656988121,0.8181,4139.3,4139.2,0.4973]
[1761656988516,0.8181,4139.3,4139.2,0.8145]
[1761656988718,3.11011389,4139.4,4139.3,0.4973]
[1761656988920,0.3186,4139.7,4139.5,0.2771]
[1761656989122,0.8181,4139.3,4139.2,0.5943]
[1761656989329,41.6181,4139.3,4139.2,0.5943]
[1761656989622,41.6181,4139.3,4139.2,0.2771]
[1761656989812,41.6909,4139.3,4139.2,0.2771]
[1761656990013,0.8181,4139.1,4139.0,3.2078]
[1761656990424,0.8181,4139.1,4139.0,3.4849]
[1761656990619,0.8181,4139.1,4139.0,4.0223]
[1761656991016,0.4995,4139.1,4139.0,4.0223]
[1761656991323,0.8181,4139.1,4139.0,4.0223]
[1761656991516,40.8,4139.3,4139.2,0.8145]
[1761656991718,41.1186,4139.3,4139.2,0.8145]
[1761656992426,0.8181,4139.3,4139.2,0.8145]
[1761656992721,41.0821,4139.3,4139.2,0.8145]
[1761656992916,41.4007,4139.3,4139.2,0.8145]
[1761656993220,41.0821,4139.3,4139.2,0.8145]
[1761656993426,0.2821,4139.3,4139.2,1.44843604]
[1761656993620,0.2821,4139.3,4139.2,0.8145]
[1761656993819,41.0821,4139.3,4139.2,0.8145]
[1761656994317,41.1186,4139.3,4139.2,1.44843604]
[1761656995416,41.1186,4139.3,4139.2,0.8145]
[1761656996218,41.1186,4139.3,4139.2,0.2771]
[1761656996523,0.8181,4139.2,4139.1,0.63393604]
[1761656996711,0.8181,4139.2,4139.1,0.5943]
[1761656996916,0.8181,4139.2,4139.1,0.8145]
[1761656998223,0.8181,4139.2,4139.1,1.44843604]
[1761656998920,40.8,4139.3,4139.2,0.8145]
[1761656999125,41.1186,4139.3,4139.2,1.6633027]
[1761656999720,41.1186,4139.3,4139.2,1.1259027]
[1761656999922,41.1186,4139.3,4139.2,1.6633027]
[1761657000126,41.1186,4139.3,4139.2,1.3461027]
[1761657000424,41.1186,4139.3,4139.2,1.1259027]
[1761657000612,41.1186,4139.3,4139.2,1.4431027]
[1761657000816,41.1186,4139.3,4139.2,0.63941782]
[1761657001118,41.1186,4139.3,4139.2,1.45391782]
[1761657001319,40.8,4139.3,4139.2,1.45391782]
[1761657001517,0.8181,4140.1,4140.0,0.8145]
[1761657001921,41.6181,4140.1,4140.0,0.2771]
[1761657002132,41.6181,4140.1,4139.9,0.63948928]
[1761657002433,0.9838,4139.5,4139.4,0.63948928]
[1761657002729,0.9838,4139.5,4139.4,0.2771]
[1761657002921,0.8181,4139.4,4139.3,0.85265237]
[1761657003122,0.8181,4139.3,4139.2,0.85265237]
[1761657003329,0.8181,4139.3,4139.2,1.44695237]
[1761657003622,0.8181,4139.3,4139.2,0.8145]
[1761657003828,0.8181,4139.5,4139.4,0.8145]
[1761657004029,0.8181,4139.4,4139.3,0.8531721]
[1761657004223,0.8181,4139.4,4139.3,1.4474721]
[1761657004527,0.1657,4139.5,4139.1,4.0609721]
[1761657004528,1.0448,4139.2,4139.1,4.0609721]
[1761657004825,1.0448,4139.2,4139.1,3.84797518]
[1761657005228,41.8448,4139.2,4139.1,3.84797518]
[1761657005522,41.8448,4139.2,4139.1,3.2078]
[1761657005825,0.3305,4139.2,4139.1,4.2817]
[1761657006124,0.3305,4139.2,4139.1,5.1348721]
[1761657006332,1.0448,4139.5,4139.4,1.0739]
[1761657006519,1.0448,4139.5,4139.4,1.71413566]
[1761657006721,1.0448,4139.5,4139.4,1.78693566]
[1761657006921,41.8448,4139.5,4139.4,1.71413566]
[1761657007426,41.8448,4139.5,4139.2,0.64023566]
[1761657007427,0.3087,4139.3,4139.2,0.64023566]
[1761657007624,1.0764,4139.2,4139.1,3.84803566]
[1761657007922,1.0764,4139.2,4139.1,4.18273566]
[1761657008126,1.1492,4139.2,4139.1,3.84803566]
[1761657008519,1.1492,4139.2,4139.1,0.64023566]
[1761657008828,1.1492,4139.2,4138.9,0.64023566]
[1761657008829,1.2785,4139.0,4138.9,0.64023566]
[1761657009029,1.0764,4138.7,4138.6,4.95543566]
[1761657009524,1.0764,4138.7,4138.6,3.84803566]
[1761657009733,1.0764,4138.4,4138.3,0.64023566]
[1761657010031,1.0764,4138.3,4138.2,0.00223227]
[1761657010529,41.9492,4138.3,4138.2,0.00223227]
[1761657011226,0.619,4136.7,4136.5,0.64023566]
[1761657011428,1.0764,4136.4,4136.3,0.64023566]
[1761657011625,0.2021,4136.5,4136.1,3.84803566]
[1761657011626,1.0764,4136.2,4136.1,3.84803566]
[1761657011830,41.8764,4136.2,4136.1,4.0026]
[1761657012023,41.87915574,4136.2,4136.1,4.31800035]
[1761657012222,41.87915574,4136.2,4136.1,0.00280035]
[1761657012423,41.95195574,4136.2,4136.1,0.00280035]
[1761657012733,41.95195574,4136.2,4135.4,3.2078]
[1761657012734,1.2785,4135.5,4135.4,3.2078]
[1761657012920,1.0764,4135.5,4135.4,4.0026]
[1761657013531,1.0764,4135.5,4135.4,4.00548365]
[1761657014224,1.0764,4135.5,4135.4,3.54538365]
[1761657014927,1.0764,4135.5,4135.4,4.00548365]
[1761657015430,1.0764,4135.5,4135.4,3.54538365]
[1761657015733,1.1492,4135.5,4135.4,3.21068365]
[1761657016036,1.1492,4135.5,4135.4,0.00288365]
[1761657016626,41.9492,4135.5,4135.4,0.00288365]
[1761657017235,41.8764,4135.5,4135.4,0.00288365]
[1761657017430,41.8764,4135.5,4135.4,1.11028365]
[1761657018027,41.9492,4135.5,4135.4,0.00288365]
[1761657021434,42.0785,4135.5,4135.4,0.00288365]
[1761657023535,42.1513,4135.5,4135.4,0.00288365]
[1761657027142,41.2574,4135.5,4135.4,1.11028365]
[1761657027438,40.8,4135.5,4135.4,1.11028365]
[1761657027630,41.2574,4135.5,4135.4,0.33758365]
[1761657027833,41.2574,4135.5,4135.4,0.00288365]
[1761657027834,41.5323,4135.5,4135.4,0.00288365]
[1761657028234,41.4595,4135.5,4135.4,0.00288365]
[1761657029338,39.4595,4135.5,4135.4,0.00288365]
[1761657029841,39.4595,4135.5,4135.4,0.33758365]
[1761657030041,39.5323,4135.5,4135.4,0.00288365]
[1761657030640,39.4595,4135.5,4135.4,0.00288365]
[1761657031432,39.4595,4135.5,4135.4,0.33758365]
[1761657031636,39.4595,4135.5,4135.4,0.79768365]
[1761657031948,39.4595,4135.5,4135.4,0.33758365]
[1761657032442,39.5323,4135.5,4135.4,0.00288365]
[1761657032641,39.4595,4135.5,4135.4,0.00288365]
[1761657032841,39.5323,4135.5,4135.4,0.00288365]
[1761657033145,39.4595,4135.5,4135.4,0.00288365]
[1761657034440,39.5323,4135.5,4135.4,0.00288365]
[1761657036637,39.4595,4135.5,4135.4,0.00288365]
[1761657037436,39.5323,4135.5,4135.4,0.00288365]
[1761657038240,39.4595,4135.5,4135.4,0.00288365]
[1761657039339,39.4595,4135.5,4135.4,0.32238365]
[1761657039943,39.5323,4135.5,4135.4,0.00288365]
[1761657040338,39.4595,4135.5,4135.4,0.00288365]
[1761657041737,39.5323,4135.5,4135.4,0.00288365]
[1761657046647,39.4595,4135.5,4135.4,0.00288365]
[1761657047850,39.5323,4135.5,4135.4,0.00288365]
[1761657050049,39.4595,4135.5,4135.4,0.00288365]
[1761657051648,42.6673,4135.5,4135.4,0.00288365]
[1761657051846,42.7401,4135.5,4135.4,0.00288365]
[1761657054471,42.6673,4135.5,4135.4,0.00288365]
[1761657054653,42.7401,4135.5,4135.4,0.00288365]
[1761657055355,42.93304062,4135.5,4135.4,0.00288365]
[1761657055654,42.6673,4135.5,4135.4,0.00288365]
[1761657056250,42.0078,4135.5,4135.4,1.09818365]
[1761657056553,42.5061,4135.5,4135.4,1.09818365]
[1761657058357,42.0078,4135.5,4135.4,1.09818365]
[1761657058554,42.7013,4135.5,4135.4,1.09818365]
[1761657058759,42.7013,4135.5,4135.4,0.32238365]
[1761657058950,42.7013,4135.5,4135.4,0.78638365]
[1761657059459,42.7013,4135.5,4135.4,1.09818365]
[1761657059858,42.7013,4135.5,4135.4,0.63418365]
[1761657060158,42.7013,4135.5,4135.4,0.32238365]
[1761657060356,42.7013,4135.5,4135.4,0.00288365]
[1761657060561,42.7013,4135.5,4135.4,0.64561673]
[1761657060860,42.7013,4135.5,4135.4,1.42911673]
[1761657061046,42.7013,4135.5,4135.4,0.64561673]
[1761657061452,42.7013,4135.5,4135.4,0.00288365]
[1761657062053,42.7013,4135.5,4135.4,0.32238365]
[1761657062456,42.7013,4135.5,4135.4,1.09818365]
[1761657062758,42.5061,4135.5,4135.4,1.09818365]
[1761657064155,42.7013,4135.5,4135.4,0.32238365]
[1761657064357,42.7013,4135.5,4135.4,0.00288365]
[1761657065063,42.7741,4135.5,4135.4,0.00288365]
[1761657065359,42.7013,4135.5,4135.4,0.00288365]
[1761657066960,42.7741,4135.5,4135.4,0.00288365]
[1761657067758,42.7013,4135.5,4135.4,0.00288365]
[1761657068261,42.7741,4135.5,4135.4,0.00288365]
[1761657068764,43.6412574,4135.5,4135.4,0.00288365]
[1761657069063,43.5684574,4135.5,4135.4,0.00288365]
[1761657070554,42.7013,4135.5,4135.4,0.00288365]
[1761657070762,42.7013,4135.5,4135.4,0.29268365]
[1761657072370,42.7013,4135.5,4135.4,0.00288365]
[1761657074470,42.7741,4135.5,4135.4,0.00288365]
[1761657074870,39.4935,4135.5,4135.4,1.01858365]
[1761657077470,39.4935,4135.5,4135.4,0.57778365]
[1761657078271,0.7781,4135.5,4135.4,1.01858365]
[1761657078573,1.031,4135.9,4135.8,1.0157]
[1761657079067,1.031,4135.9,4135.8,1.65843308]
[1761657079972,1.031,4135.8,4135.7,3.85053308]
[1761657080174,1.031,4135.8,4135.7,3.2078]
[1761657080373,1.031,4135.8,4135.7,4.58113308]
[1761657080575,1.031,4135.8,4135.7,4.86623308]
[1761657081469,1.031,4135.8,4135.7,4.2235]
[1761657082774,1.031,4135.8,4135.7,0.5749]
[1761657082972,1.031,4135.8,4135.7,0.64110982]
[1761657083170,1.031,4135.8,4135.4,0.00288365]
[1761657083171,1.2144,4135.5,4135.4,0.64399347]
[1761657083669,1.2872,4135.5,4135.4,0.00288365]
[1761657083870,42.0144,4135.5,4135.4,0.00288365]
[1761657084178,42.0144,4135.5,4134.5,0.64110982]
[1761657084179,0.5842,4134.6,4134.5,0.64110982]
[1761657084379,1.031,4134.3,4134.2,3.84890982]
[1761657084564,1.031,4134.3,4134.2,3.2078]
[1761657084878,40.8,4134.3,4134.2,4.86460982]
[1761657085078,40.8,4134.3,4134.2,4.2963]
[1761657085367,1.031,4135.3,4135.2,0.5749]
[1761657085874,4.2388,4135.9,4135.8,1.0157]
[1761657086372,41.3842,4135.9,4135.8,1.0157]
[1761657086582,40.8,4135.9,4135.8,1.0885]
[1761657086875,40.8,4135.9,4135.8,1.0157]
[1761657087260,40.8,4135.9,4135.8,1.21558535]
[1761657087261,41.2468,4135.9,4135.8,1.21558535]
[1761657087467,41.2468,4135.9,4135.8,1.65638535]
[1761657088876,41.2468,4135.9,4135.8,0.64068535]
[1761657089077,1.031,4135.8,4135.7,0.93048535]
[1761657089266,1.031,4135.8,4135.7,0.2898]
[1761657090675,0.00275574,4136.2,4136.1,1.0157]
[1761657091176,0.00275574,4136.2,4136.1,1.0885]
[1761657091374,0.00275574,4136.2,4136.1,1.72898218]
[1761657091574,0.00275574,4136.2,4136.1,1.65618218]
[1761657091775,0.00275574,4136.2,4136.1,1.72898218]
[1761657092566,0.00275574,4136.2,4136.1,1.0157]
[1761657092780,0.00275574,4136.2,4136.1,1.0885]
[1761657092974,0.00275574,4136.2,4136.1,1.0157]
[1761657093275,1.03375574,4136.2,4136.1,1.65555304]
[1761657093478,1.03375574,4136.2,4136.1,1.0157]
[1761657093773,1.03375574,4136.2,4136.1,0.2898]
[1761657093972,1.03375574,4136.2,4136.1,0.7306]
[1761657094176,1.03375574,4136.2,4136.1,1.0157]
[1761657095673,0.00275574,4136.2,4136.1,1.0157]
[1761657096375,0.00275574,4136.2,4136.1,1.0885]
[1761657096881,0.00275574,4136.2,4136.1,1.0157]
[1761657099583,0.00275574,4136.2,4136.1,1.0885]
[1761657102677,41.2222,4137.0,4136.9,1.0079]
[1761657102979,41.3879,4137.0,4136.9,0.5659]
[1761657103580,41.3879,4137.0,4136.4,0.442]
[1761657103581,0.9805,4136.7,4136.4,0.442]
[1761657103781,0.6774,4136.1,4136.0,0.63904318]
[1761657103976,0.9805,4135.7,4135.6,3.4717]
[1761657104180,0.9805,4135.7,4135.6,4.2157]
[1761657104375,41.7805,4135.7,4135.6,1.0079]
[1761657105289,0.9805,4135.3,4135.2,0.5659]
[1761657105484,0.9805,4135.3,4135.2,0.2639]
[1761657106688,0.2552,4135.3,4135.2,1.0079]
[1761657107287,0.6774,4135.3,4135.2,1.0079]
[1761657107883,0.9805,4135.3,4135.2,1.0079]
[1761657108081,0.9805,4135.3,4135.2,0.5659]
[1761657108386,0.9805,4135.3,4135.2,0.2639]
[1761657108578,0.9805,4135.1,4135.0,3.4717]
[1761657108777,1.1462,4135.0,4134.9,0.63904318]
[1761657108979,0.9805,4134.9,4134.8,0.2639]
[1761657109181,0.9805,4134.7,4134.6,0.2639]
[1761657109492,0.9805,4134.7,4134.6,1.0079]
[1761657109790,0.9805,4134.5,4134.4,3.9137]
[1761657110585,1.1462,4134.5,4134.4,0.7059]
[1761657110792,1.1462,4134.5,4134.4,0.2639]
[1761657111680,1.1462,4134.5,4134.4,1.0079]
[1761657111884,3.463,4134.9,4134.8,0.5659]